[Event "16th EWICC 2015"]
[Site "Kutaisi"]
[Date "2015.06.02"]
[Round "8"]
[White "Batsiashvili, Nino"]
[Black "Javakhishvili, Lela"]
[Result "1/2-1/2"]
[ECO "E32"]
[WhiteElo "2473"]
[BlackElo "2472"]
[Annotator "Robot 11"]
[PlyCount "37"]
[EventDate "2015.??.??"]
[EventCountry "GEO"]
[TimeControl "900+10"]

1. d4 {[%emt 0:00:01]} Nf6 {[%emt 0:00:02]} 2. c4 {[%emt 0:00:05]} e6 {[%emt 0:
00:02]} 3. Nc3 {[%emt 0:00:01]} Bb4 {[%emt 0:00:05]} 4. Qc2 {[%emt 0:00:02]}
O-O {[%emt 0:00:04]} 5. Nf3 {[%emt 0:00:02]} c5 {[%emt 0:00:13]} 6. dxc5 {
[%emt 0:00:02]} Na6 {[%emt 0:00:04]} 7. g3 {[%emt 0:00:02]} Nxc5 {[%emt 0:00:
05]} 8. Bg2 {[%emt 0:00:04]} Nce4 {[%emt 0:00:16]} 9. O-O {[%emt 0:00:08]} Nxc3
{[%emt 0:00:04]} 10. bxc3 {[%emt 0:00:02]} Be7 {[%emt 0:00:02]} 11. e4 {[%emt
0:00:14]} d6 {[%emt 0:00:05]} 12. e5 {[%emt 0:00:10]} dxe5 {[%emt 0:00:04]} 13.
Nxe5 {[%emt 0:00:02]} Qc7 {[%emt 0:01:51]} 14. Qe2 {[%emt 0:00:09]} Nd7 {[%emt
0:00:18]} 15. Bf4 {[%emt 0:00:18]} Nxe5 {[%emt 0:00:11]} 16. Bxe5 {[%emt 0:00:
02]} Bd6 {[%emt 0:00:02]} 17. Rfe1 {[%emt 0:00:29]} Bxe5 {[%emt 0:00:03]} 18.
Qxe5 {[%emt 0:00:01]} Qxe5 {[%emt 0:00:39]} 19. Rxe5 {[%emt 0:00:03]} 1/2-1/2

[Event "16th EWICC 2015"]
[Site "Kutaisi"]
[Date "2015.06.02"]
[Round "8"]
[White "Charochkina, Daria"]
[Black "Charkhalashvili, Inga"]
[Result "0-1"]
[ECO "A18"]
[WhiteElo "2391"]
[BlackElo "2318"]
[Annotator "Robot 11"]
[PlyCount "124"]
[EventDate "2015.??.??"]
[EventCountry "GEO"]
[TimeControl "900+10"]

1. c4 {[%emt 0:00:05]} Nf6 {[%emt 0:00:02]} 2. Nc3 {[%emt 0:00:01]} e6 {[%emt
0:00:02]} 3. e4 {[%emt 0:00:03]} d6 {[%emt 0:01:09]} 4. d4 {[%emt 0:00:05]}
Nbd7 {[%emt 0:01:03]} 5. g3 {[%emt 0:00:47]} e5 {[%emt 0:00:07]} 6. Bg2 {[%emt
0:00:08]} c6 {[%emt 0:00:19]} 7. Nge2 {[%emt 0:00:03]} exd4 {[%emt 0:01:49]} 8.
Nxd4 {[%emt 0:00:03]} Ne5 {[%emt 0:00:00]} 9. b3 {[%emt 0:00:59]} Qa5 {[%emt 0:
00:57]} 10. Qc2 {[%emt 0:00:14]} c5 {[%emt 0:00:08]} 11. Nf5 {[%emt 0:00:17]}
g6 {[%emt 0:00:29]} 12. Ne3 {[%emt 0:00:06]} Bg7 {[%emt 0:00:01]} 13. O-O {
[%emt 0:00:21]} O-O {[%emt 0:00:03]} 14. Bb2 {[%emt 0:00:03]} a6 {[%emt 0:00:
38]} 15. Ncd5 {[%emt 0:01:20]} Nxd5 {[%emt 0:00:06]} 16. Nxd5 {[%emt 0:00:03]}
Nc6 {[%emt 0:00:48]} 17. Nf6+ {[%emt 0:00:22]} Kh8 {[%emt 0:00:14]} 18. Bc3 {
[%emt 0:00:16]} Nd4 {[%emt 0:00:35]} 19. Bxd4 {[%emt 0:00:56]} cxd4 {[%emt 0:
00:00]} 20. Nd5 {[%emt 0:00:03]} Be6 {[%emt 0:00:20]} 21. b4 {[%emt 0:01:19]}
Qd8 {[%emt 0:00:24]} 22. Qd3 {[%emt 0:00:31]} Rc8 {[%emt 0:00:17]} 23. Rac1 {
[%emt 0:00:18]} Bxd5 {[%emt 0:00:39]} 24. exd5 {[%emt 0:00:03]} a5 {[%emt 0:00:
29]} 25. a3 {[%emt 0:00:01]} axb4 {[%emt 0:00:01]} 26. axb4 {[%emt 0:00:02]} b6
{[%emt 0:00:17]} 27. Bf3 {[%emt 0:01:03]} Qc7 {[%emt 0:00:44]} 28. h4 {[%emt 0:
00:32]} h5 {[%emt 0:00:36]} 29. Bd1 {[%emt 0:00:03]} Ra8 {[%emt 0:00:04]} 30.
Re1 {[%emt 0:00:15]} Qd7 {[%emt 0:00:21]} 31. Kg2 {[%emt 0:00:28]} Rfc8 {[%emt
0:00:05]} 32. Bc2 {[%emt 0:01:24]} Bf6 {[%emt 0:01:16]} 33. Re4 {[%emt 0:00:11]
} Kg8 {[%emt 0:00:48]} 34. Qf3 {[%emt 0:01:22]} Kg7 {[%emt 0:00:23]} 35. Bb1 {
[%emt 0:00:35]} Ra4 {[%emt 0:00:15]} 36. g4 {[%emt 0:00:18]} hxg4 {[%emt 0:00:
15]} 37. Rxg4 {[%emt 0:00:02]} Rh8 {[%emt 0:00:19]} 38. Rh1 {[%emt 0:00:13]}
Ra3 {[%emt 0:00:50]} 39. Qe4 {[%emt 0:01:01]} Kf8 {[%emt 0:00:37]} 40. Rf4 {
[%emt 0:00:59]} Be5 {[%emt 0:00:01]} 41. Rf3 {[%emt 0:00:13]} Rxf3 {[%emt 0:00:
19]} 42. Qxf3 {[%emt 0:00:04]} Qe7 {[%emt 0:01:08]} 43. Qg4 {[%emt 0:00:43]}
Rh5 {[%emt 0:00:20]} 44. Rh3 {[%emt 0:00:16]} Bf6 {[%emt 0:00:17]} 45. Bc2 {
[%emt 0:01:17]} Kg7 {[%emt 0:00:45]} 46. Qf4 {[%emt 0:00:49]} Bxh4 {[%emt 0:01:
06]} 47. Qxd4+ {[%emt 0:00:23]} Bf6 {[%emt 0:00:02]} 48. Qxb6 {[%emt 0:00:06]}
Rxh3 {[%emt 0:00:14]} 49. Kxh3 {[%emt 0:00:01]} Qe2 {[%emt 0:00:01]} 50. Ba4 {
[%emt 0:01:09]} Qf1+ {[%emt 0:00:42]} 51. Kg3 {[%emt 0:00:06]} Be5+ {[%emt 0:
00:04]} 52. Kf3 {[%emt 0:00:02]} Qxc4 {[%emt 0:00:20]} 53. Qb7 {[%emt 0:00:36]}
Qf4+ {[%emt 0:00:13]} 54. Ke2 {[%emt 0:00:03]} Bd4 {[%emt 0:00:02]} 55. Kd3 {
[%emt 0:00:16]} Bxf2 {[%emt 0:00:05]} 56. Bc6 {[%emt 0:00:46]} Qd4+ {[%emt 0:
00:06]} 57. Kc2 {[%emt 0:00:00]} Be1 {[%emt 0:00:25]} 58. Kb3 {[%emt 0:00:02]}
Qd1+ {[%emt 0:00:14]} 59. Ka3 {[%emt 0:00:05]} Bd2 {[%emt 0:00:08]} 60. b5 {
[%emt 0:00:08]} Qc1+ {[%emt 0:00:15]} 61. Kb3 {[%emt 0:00:10]} Qc3+ {[%emt 0:
00:04]} 62. Ka2 {[%emt 0:00:01]} Bc1 {[%emt 0:00:03]} 0-1

[Event "16th EWICC 2015"]
[Site "Kutaisi"]
[Date "2015.06.02"]
[Round "8"]
[White "Daulyte, Deimante"]
[Black "Mammadova, Gulnar"]
[Result "1-0"]
[ECO "B06"]
[WhiteElo "2402"]
[BlackElo "2293"]
[Annotator "Robot 11"]
[PlyCount "101"]
[EventDate "2015.??.??"]
[EventCountry "GEO"]
[TimeControl "900+10"]

1. e4 {[%emt 0:00:02]} g6 {[%emt 0:00:05]} 2. d4 {[%emt 0:00:04]} Bg7 {[%emt 0:
00:01]} 3. Nc3 {[%emt 0:00:06]} c6 {[%emt 0:00:03]} 4. h3 {[%emt 0:00:29]} d5 {
[%emt 0:00:04]} 5. e5 {[%emt 0:00:04]} f6 {[%emt 0:01:58]} 6. f4 {[%emt 0:02:
02]} Nh6 {[%emt 0:00:20]} 7. Be3 {[%emt 0:00:14]} Nf5 {[%emt 0:00:28]} 8. Bf2 {
[%emt 0:00:02]} fxe5 {[%emt 0:00:27]} 9. dxe5 {[%emt 0:00:30]} e6 {[%emt 0:01:
19]} 10. Nf3 {[%emt 0:00:24]} O-O {[%emt 0:00:44]} 11. Qd2 {[%emt 0:02:32]} b6
{[%emt 0:01:23]} 12. g4 {[%emt 0:01:54]} Ne7 {[%emt 0:01:12]} 13. h4 {[%emt 0:
00:19]} Ba6 {[%emt 0:00:53]} 14. Bxa6 {[%emt 0:01:01]} Nxa6 {[%emt 0:00:01]}
15. h5 {[%emt 0:00:07]} Nc5 {[%emt 0:00:40]} 16. Bh4 {[%emt 0:01:24]} gxh5 {
[%emt 0:01:11]} 17. Bxe7 {[%emt 0:01:50]} Qxe7 {[%emt 0:00:01]} 18. Rxh5 {
[%emt 0:00:02]} Qf7 {[%emt 0:00:46]} 19. Ne2 {[%emt 0:00:10]} Ne4 {[%emt 0:00:
27]} 20. Qd3 {[%emt 0:00:29]} Qg6 {[%emt 0:00:25]} 21. Rh4 {[%emt 0:00:47]} c5
{[%emt 0:01:11]} 22. f5 {[%emt 0:00:50]} exf5 {[%emt 0:00:59]} 23. Qxd5+ {
[%emt 0:00:02]} Kh8 {[%emt 0:00:04]} 24. gxf5 {[%emt 0:00:17]} Qxf5 {[%emt 0:
00:08]} 25. Rf4 {[%emt 0:00:11]} Qg6 {[%emt 0:00:39]} 26. Nh4 {[%emt 0:00:51]}
Qh5 {[%emt 0:00:45]} 27. Qxe4 {[%emt 0:00:54]} Bh6 {[%emt 0:00:43]} 28. Rf5 {
[%emt 0:01:01]} Bg5 {[%emt 0:00:04]} 29. Nf3 {[%emt 0:00:47]} Rxf5 {[%emt 0:01:
46]} 30. Qxa8+ {[%emt 0:00:15]} Kg7 {[%emt 0:00:01]} 31. Nxg5 {[%emt 0:00:03]}
Qh4+ {[%emt 0:00:15]} 32. Kd2 {[%emt 0:00:12]} Qxg5+ {[%emt 0:00:01]} 33. Kd3 {
[%emt 0:00:07]} Qg6 {[%emt 0:00:48]} 34. Kc3 {[%emt 0:00:17]} Rxe5 {[%emt 0:00:
27]} 35. Rg1 {[%emt 0:00:09]} Rg5 {[%emt 0:00:05]} 36. Qxa7+ {[%emt 0:00:09]}
Kh6 {[%emt 0:00:09]} 37. Rxg5 {[%emt 0:00:12]} Qf6+ {[%emt 0:00:02]} 38. Kb3 {
[%emt 0:00:05]} Kxg5 {[%emt 0:00:18]} 39. Nc3 {[%emt 0:00:01]} Qe6+ {[%emt 0:
00:10]} 40. Ka3 {[%emt 0:00:01]} h5 {[%emt 0:00:14]} 41. Qg7+ {[%emt 0:00:10]}
Kf4 {[%emt 0:00:06]} 42. Qg2 {[%emt 0:00:20]} h4 {[%emt 0:00:14]} 43. Nd5+ {
[%emt 0:00:10]} Ke5 {[%emt 0:00:03]} 44. c4 {[%emt 0:00:14]} Qh6 {[%emt 0:00:
21]} 45. Qe2+ {[%emt 0:00:23]} Kd4 {[%emt 0:00:10]} 46. Nc3 {[%emt 0:00:04]}
Qe3 47. Qg4+ Kd3 {[%emt 0:00:15]} 48. Qxh4 {[%emt 0:00:16]} b5 {[%emt 0:00:11]}
49. cxb5 {[%emt 0:00:13]} c4 {[%emt 0:00:04]} 50. Qe4+ {[%emt 0:00:09]} Qxe4 {
[%emt 0:00:04]} 51. Nxe4 {[%emt 0:00:01]} 1-0

[Event "16th EWICC 2015"]
[Site "Kutaisi"]
[Date "2015.06.02"]
[Round "8"]
[White "Donghvani, Nia"]
[Black "Choladze, Tea"]
[Result "0-1"]
[ECO "B35"]
[WhiteElo "1444"]
[BlackElo "1755"]
[Annotator "Robot 11"]
[PlyCount "52"]
[EventDate "2015.??.??"]
[EventCountry "GEO"]
[TimeControl "900+10"]

1. e4 {[%emt 0:00:01]} c5 {[%emt 0:00:04]} 2. Nf3 {[%emt 0:00:02]} g6 {[%emt 0:
00:12]} 3. d4 {[%emt 0:00:19]} cxd4 {[%emt 0:00:03]} 4. Nxd4 {[%emt 0:00:01]}
Bg7 {[%emt 0:00:03]} 5. Nc3 {[%emt 0:00:39]} Nc6 {[%emt 0:00:03]} 6. Be3 {
[%emt 0:00:19]} Nf6 {[%emt 0:00:12]} 7. Bc4 {[%emt 0:00:18]} O-O {[%emt 0:00:
06]} 8. Bb3 {[%emt 0:01:00]} d6 {[%emt 0:00:13]} 9. f3 {[%emt 0:00:18]} Bd7 {
[%emt 0:00:10]} 10. Qd2 {[%emt 0:00:04]} a5 {[%emt 0:00:20]} 11. O-O-O {[%emt
0:00:32]} Ne5 {[%emt 0:01:08]} 12. h4 {[%emt 0:00:09]} a4 {[%emt 0:00:09]} 13.
Bd5 {[%emt 0:00:43]} e6 {[%emt 0:00:16]} 14. Bxb7 {[%emt 0:00:15]} Nc4 {[%emt
0:00:04]} 15. Qe2 {[%emt 0:00:17]} Nxb2 {[%emt 0:00:55]} 16. Bxa8 {[%emt 0:01:
14]} Nxd1 {[%emt 0:00:04]} 17. Rxd1 {[%emt 0:00:05]} Qxa8 {[%emt 0:00:06]} 18.
g4 {[%emt 0:00:23]} Qa5 {[%emt 0:00:10]} 19. Ncb5 {[%emt 0:01:33]} e5 {[%emt 0:
00:40]} 20. Nxd6 {[%emt 0:00:43]} exd4 {[%emt 0:00:05]} 21. Bxd4 {[%emt 0:00:
03]} Be6 {[%emt 0:01:03]} 22. g5 {[%emt 0:01:04]} Nh5 {[%emt 0:00:09]} 23. Bxg7
{[%emt 0:00:20]} Nxg7 {[%emt 0:00:14]} 24. f4 {[%emt 0:00:11]} Bxa2 {[%emt 0:
00:22]} 25. f5 {[%emt 0:00:04]} Qe5 {[%emt 0:00:17]} 26. fxg6 {[%emt 0:00:20]}
fxg6 {[%emt 0:00:20]} 0-1

[Event "16th EWICC 2015"]
[Site "Kutaisi"]
[Date "2015.06.02"]
[Round "8"]
[White "Dordzhieva, Dinara"]
[Black "Guramishvili, Sopiko"]
[Result "0-1"]
[ECO "A05"]
[WhiteElo "2242"]
[BlackElo "2370"]
[Annotator "Robot 11"]
[PlyCount "106"]
[EventDate "2015.??.??"]
[EventCountry "GEO"]
[TimeControl "900+10"]

1. Nf3 {[%emt 0:00:01]} Nf6 {[%emt 0:00:01]} 2. c4 {[%emt 0:00:01]} g6 {[%emt
0:00:01]} 3. d4 {[%emt 0:00:08]} Bg7 {[%emt 0:00:02]} 4. g3 {[%emt 0:00:01]} b6
{[%emt 0:00:03]} 5. Bg2 {[%emt 0:00:08]} Bb7 {[%emt 0:00:00]} 6. O-O {[%emt 0:
00:11]} O-O {[%emt 0:00:05]} 7. Nc3 {[%emt 0:00:05]} Ne4 {[%emt 0:00:04]} 8.
Nxe4 {[%emt 0:00:53]} Bxe4 {[%emt 0:00:02]} 9. Bf4 {[%emt 0:00:04]} c5 {[%emt
0:00:31]} 10. e3 {[%emt 0:02:43]} d6 {[%emt 0:00:32]} 11. Qd2 {[%emt 0:01:13]}
Nd7 {[%emt 0:00:35]} 12. d5 {[%emt 0:01:08]} b5 {[%emt 0:01:04]} 13. cxb5 {
[%emt 0:00:56]} Nf6 {[%emt 0:02:57]} 14. Ne1 {[%emt 0:00:45]} Bxg2 {[%emt 0:00:
11]} 15. Kxg2 {[%emt 0:00:11]} Qd7 {[%emt 0:00:38]} 16. Qd3 {[%emt 0:01:11]}
Rfc8 {[%emt 0:00:40]} 17. Rc1 {[%emt 0:00:06]} Rab8 {[%emt 0:00:35]} 18. a4 {
[%emt 0:00:28]} a6 {[%emt 0:00:04]} 19. bxa6 {[%emt 0:04:17]} Rxb2 {[%emt 0:00:
02]} 20. Rc2 {[%emt 0:00:30]} Rb4 {[%emt 0:00:15]} 21. Nf3 {[%emt 0:01:33]}
Qxa4 {[%emt 0:01:57]} 22. Rfc1 {[%emt 0:00:01]} Ra8 {[%emt 0:00:15]} 23. Rc4 {
[%emt 0:00:48]} Qxa6 {[%emt 0:00:22]} 24. e4 {[%emt 0:00:10]} Nd7 {[%emt 0:00:
42]} 25. Ne1 {[%emt 0:01:02]} Rb2 {[%emt 0:00:49]} 26. R1c2 {[%emt 0:00:26]}
Rxc2 {[%emt 0:02:15]} 27. Rxc2 {[%emt 0:00:09]} Qa1 {[%emt 0:00:40]} 28. Qd2 {
[%emt 0:00:11]} Ra4 {[%emt 0:00:23]} 29. Qe2 {[%emt 0:00:12]} Nf6 {[%emt 0:00:
15]} 30. f3 {[%emt 0:00:08]} Nh5 {[%emt 0:00:05]} 31. Bd2 {[%emt 0:00:06]} Bd4
{[%emt 0:00:11]} 32. Qb5 {[%emt 0:00:17]} Ra8 {[%emt 0:00:18]} 33. Qc4 {[%emt
0:00:12]} Nf6 {[%emt 0:00:12]} 34. Qb5 {[%emt 0:00:05]} h5 {[%emt 0:00:10]} 35.
h4 {[%emt 0:00:16]} Kg7 {[%emt 0:00:05]} 36. Qc4 {[%emt 0:00:02]} Nd7 {[%emt 0:
00:26]} 37. f4 {[%emt 0:00:12]} Nf6 {[%emt 0:00:47]} 38. Qe2 {[%emt 0:00:01]}
Qb1 {[%emt 0:00:14]} 39. Bc1 {[%emt 0:00:23]} Ng4 {[%emt 0:00:15]} 40. Nf3 {
[%emt 0:00:05]} Ba1 {[%emt 0:00:19]} 41. e5 {[%emt 0:00:20]} Qb3 {[%emt 0:00:
30]} 42. Qe4 {[%emt 0:00:08]} Ra4 {[%emt 0:00:05]} 43. Qe2 {[%emt 0:00:10]}
Qxd5 {[%emt 0:00:05]} 44. Rd2 {[%emt 0:00:09]} Qc6 {[%emt 0:00:11]} 45. exd6 {
[%emt 0:00:05]} exd6 {[%emt 0:00:02]} 46. Kh3 {[%emt 0:00:13]} Nf6 {[%emt 0:00:
35]} 47. Rd1 {[%emt 0:00:05]} Qa6 {[%emt 0:00:44]} 48. Qe1 {[%emt 0:00:18]}
Qc8+ {[%emt 0:00:09]} 49. Kg2 {[%emt 0:00:06]} Ra2+ {[%emt 0:00:08]} 50. Rd2 {
[%emt 0:00:13]} Bc3 {[%emt 0:00:03]} 51. Kg1 {[%emt 0:00:10]} Bxd2 {[%emt 0:00:
08]} 52. Bxd2 {[%emt 0:00:01]} Qa8 {[%emt 0:00:11]} 53. Ng5 {[%emt 0:00:07]}
Ra1 {[%emt 0:00:05]} 0-1

[Event "16th EWICC 2015"]
[Site "Kutaisi"]
[Date "2015.06.02"]
[Round "8"]
[White "Esadze, Tamar"]
[Black "Khmiadashvili, Tamar"]
[Result "0-1"]
[ECO "B12"]
[WhiteElo "1697"]
[BlackElo "2043"]
[Annotator "Robot 11"]
[PlyCount "90"]
[EventDate "2015.??.??"]
[EventCountry "GEO"]
[TimeControl "900+10"]

1. e4 {[%emt 0:00:01]} c6 {[%emt 0:00:01]} 2. d4 {[%emt 0:00:02]} g6 {[%emt 0:
00:01]} 3. Nc3 {[%emt 0:00:02]} Bg7 {[%emt 0:00:03]} 4. Nf3 {[%emt 0:00:01]} d5
{[%emt 0:00:12]} 5. Be3 {[%emt 0:00:21]} Nf6 {[%emt 0:00:13]} 6. exd5 {[%emt 0:
00:24]} cxd5 {[%emt 0:00:10]} 7. Ne5 {[%emt 0:00:46]} O-O {[%emt 0:00:07]} 8.
Be2 {[%emt 0:00:13]} Nc6 {[%emt 0:00:20]} 9. O-O {[%emt 0:00:31]} Ne8 {[%emt 0:
00:33]} 10. Bb5 {[%emt 0:02:07]} Bd7 {[%emt 0:01:42]} 11. f4 {[%emt 0:01:27]}
Nc7 {[%emt 0:00:38]} 12. Be2 {[%emt 0:01:22]} f5 {[%emt 0:01:02]} 13. Bf3 {
[%emt 0:00:54]} e6 {[%emt 0:00:52]} 14. Qd2 {[%emt 0:00:16]} Be8 {[%emt 0:00:
13]} 15. Rad1 {[%emt 0:00:09]} a6 {[%emt 0:00:58]} 16. a3 {[%emt 0:00:16]} b5 {
[%emt 0:00:41]} 17. Na2 {[%emt 0:01:12]} a5 {[%emt 0:00:27]} 18. b3 {[%emt 0:
00:09]} Qd6 {[%emt 0:00:16]} 19. Qc1 {[%emt 0:00:49]} Rc8 {[%emt 0:00:52]} 20.
Qb2 {[%emt 0:00:47]} b4 {[%emt 0:00:44]} 21. a4 {[%emt 0:00:09]} Nd8 {[%emt 0:
01:33]} 22. Nc1 {[%emt 0:00:06]} Nb7 {[%emt 0:00:17]} 23. Ncd3 {[%emt 0:00:06]}
Qe7 {[%emt 0:00:16]} 24. Rc1 {[%emt 0:00:36]} Nd6 {[%emt 0:00:57]} 25. Nc5 {
[%emt 0:00:36]} Ne4 {[%emt 0:00:21]} 26. Bxe4 {[%emt 0:01:02]} dxe4 {[%emt 0:
00:08]} 27. c4 {[%emt 0:00:40]} bxc3 {[%emt 0:00:08]} 28. Qxc3 {[%emt 0:00:08]}
Nd5 {[%emt 0:00:02]} 29. Qd2 {[%emt 0:00:16]} g5 {[%emt 0:00:29]} 30. g3 {
[%emt 0:00:16]} Bxe5 {[%emt 0:00:38]} 31. fxe5 {[%emt 0:00:29]} h6 {[%emt 0:00:
15]} 32. Kh1 {[%emt 0:00:30]} Bh5 {[%emt 0:00:08]} 33. Bf2 {[%emt 0:01:08]}
Bf3+ {[%emt 0:00:04]} 34. Kg1 {[%emt 0:00:01]} f4 {[%emt 0:00:30]} 35. Qxa5 {
[%emt 0:00:16]} e3 {[%emt 0:00:15]} 36. Be1 {[%emt 0:00:02]} Be2 {[%emt 0:00:
08]} 37. Bb4 {[%emt 0:01:02]} Nxb4 {[%emt 0:00:21]} 38. Qxb4 {[%emt 0:00:04]}
Bxf1 {[%emt 0:00:14]} 39. Rxf1 {[%emt 0:00:02]} f3 {[%emt 0:00:22]} 40. Qc3 {
[%emt 0:00:13]} f2+ {[%emt 0:00:16]} 41. Kg2 {[%emt 0:00:15]} Qb7+ {[%emt 0:00:
39]} 42. Kh3 {[%emt 0:00:39]} Qf3 {[%emt 0:00:28]} 43. Qc4 {[%emt 0:00:08]} g4+
{[%emt 0:00:20]} 44. Kh4 {[%emt 0:00:02]} Qf5 {[%emt 0:00:19]} 45. Qe2 {[%emt
0:00:59]} Qg5# {[%emt 0:00:06]} 0-1

[Event "16th EWICC 2015"]
[Site "Kutaisi"]
[Date "2015.06.02"]
[Round "8"]
[White "Galliamova, Alisa"]
[Black "Lomineishvili, Maia"]
[Result "1-0"]
[ECO "D08"]
[WhiteElo "2478"]
[BlackElo "2364"]
[Annotator "Robot 11"]
[PlyCount "127"]
[EventDate "2015.??.??"]
[EventCountry "GEO"]
[TimeControl "900+10"]

1. d4 {[%emt 0:00:01]} d5 {[%emt 0:00:02]} 2. c4 {[%emt 0:00:09]} e5 {[%emt 0:
00:01]} 3. dxe5 {[%emt 0:00:18]} d4 {[%emt 0:00:03]} 4. Nf3 {[%emt 0:00:13]}
Nc6 {[%emt 0:00:01]} 5. e3 {[%emt 0:01:03]} Bb4+ {[%emt 0:00:40]} 6. Bd2 {
[%emt 0:00:05]} dxe3 {[%emt 0:00:22]} 7. fxe3 {[%emt 0:00:03]} Bg4 {[%emt 0:00:
28]} 8. Bxb4 {[%emt 0:05:03]} Qxd1+ {[%emt 0:01:23]} 9. Kxd1 {[%emt 0:00:02]}
Nxb4 {[%emt 0:00:01]} 10. h3 {[%emt 0:00:33]} O-O-O+ {[%emt 0:00:32]} 11. Nbd2
{[%emt 0:00:03]} Bh5 {[%emt 0:01:22]} 12. g4 {[%emt 0:02:48]} Bg6 {[%emt 0:00:
02]} 13. Nd4 {[%emt 0:00:08]} Ne7 {[%emt 0:00:15]} 14. Bg2 {[%emt 0:01:00]} c5
{[%emt 0:02:12]} 15. Nb5 {[%emt 0:00:16]} Nc2 {[%emt 0:00:12]} 16. Ke2 {[%emt
0:00:19]} Nxa1 {[%emt 0:00:19]} 17. Rxa1 {[%emt 0:00:04]} Nc6 {[%emt 0:00:00]}
18. Bxc6 {[%emt 0:01:18]} bxc6 {[%emt 0:00:44]} 19. Nd6+ {[%emt 0:00:02]} Kc7 {
[%emt 0:00:03]} 20. Nb3 {[%emt 0:01:46]} f6 {[%emt 0:00:47]} 21. Nxc5 {[%emt 0:
00:07]} fxe5 {[%emt 0:00:13]} 22. Nf5 {[%emt 0:00:02]} Bf7 {[%emt 0:02:27]} 23.
b3 {[%emt 0:00:02]} Kb6 {[%emt 0:00:12]} 24. Na4+ {[%emt 0:00:25]} Ka5 {[%emt
0:00:03]} 25. Nc5 {[%emt 0:00:06]} Kb4 {[%emt 0:00:48]} 26. Nd3+ {[%emt 0:00:
06]} Ka3 {[%emt 0:00:11]} 27. Nxe5 {[%emt 0:00:20]} Bg6 {[%emt 0:00:16]} 28.
Nd4 {[%emt 0:00:37]} c5 {[%emt 0:00:19]} 29. Ndc6 {[%emt 0:00:46]} Rde8 {[%emt
0:00:58]} 30. Rd1 {[%emt 0:00:02]} Be4 {[%emt 0:01:27]} 31. Rd7 {[%emt 0:00:09]
} a5 {[%emt 0:00:07]} 32. Ra7 {[%emt 0:00:29]} Ra8 {[%emt 0:00:25]} 33. Rxa5+
Rxa5 {[%emt 0:00:00]} 34. Nxa5 {[%emt 0:00:18]} Re8 {[%emt 0:01:01]} 35. Nd3 {
[%emt 0:00:14]} Bxd3+ {[%emt 0:00:20]} 36. Kxd3 {[%emt 0:00:01]} Kxa2 {[%emt 0:
00:13]} 37. Nb7 {[%emt 0:00:12]} Re5 {[%emt 0:00:18]} 38. h4 {[%emt 0:00:25]}
Kxb3 {[%emt 0:00:05]} 39. e4 {[%emt 0:00:01]} Kb4 {[%emt 0:00:05]} 40. Nd8 {
[%emt 0:00:03]} Re8 {[%emt 0:00:12]} 41. Nc6+ {[%emt 0:00:05]} Kb3 {[%emt 0:00:
04]} 42. Na5+ {[%emt 0:00:02]} Ka4 {[%emt 0:00:06]} 43. Nb7 {[%emt 0:00:21]}
Kb4 {[%emt 0:00:02]} 44. Nd6 {[%emt 0:00:04]} Re6 {[%emt 0:00:07]} 45. Nf5 {
[%emt 0:00:11]} g6 {[%emt 0:00:02]} 46. Ne3 {[%emt 0:00:00]} Kb3 {[%emt 0:00:
37]} 47. g5 {[%emt 0:00:05]} Re8 {[%emt 0:00:18]} 48. Nd5 {[%emt 0:00:04]} Rf8
{[%emt 0:00:08]} 49. e5 {[%emt 0:00:06]} Re8 {[%emt 0:00:34]} 50. Ke4 {[%emt 0:
00:16]} Kxc4 {[%emt 0:00:02]} 51. Nf6 {[%emt 0:00:14]} Re7 {[%emt 0:00:01]} 52.
Nd5 {[%emt 0:00:07]} Re8 {[%emt 0:00:20]} 53. Nf6 {[%emt 0:00:03]} Rd8 {[%emt
0:00:15]} 54. e6 {[%emt 0:00:08]} Rd1 {[%emt 0:00:01]} 55. Ke5 {[%emt 0:00:10]}
Re1+ {[%emt 0:00:09]} 56. Kd6 {[%emt 0:00:01]} Kb5 {[%emt 0:00:11]} 57. e7 {
[%emt 0:00:07]} c4 {[%emt 0:00:01]} 58. Nd5 {[%emt 0:00:49]} Ka4 {[%emt 0:00:
06]} 59. Kd7 {[%emt 0:00:10]} c3 {[%emt 0:01:00]} 60. Nxc3+ {[%emt 0:00:08]}
Kb4 {[%emt 0:00:02]} 61. Nd5+ {[%emt 0:00:53]} Kc5 {[%emt 0:00:11]} 62. Nf6 {
[%emt 0:00:01]} Rd1+ {[%emt 0:00:26]} 63. Ke6 {[%emt 0:00:07]} Re1+ {[%emt 0:
00:09]} 64. Kf7 {[%emt 0:00:02]} 1-0